bitfinex/quotes_BTCUSD_20251230
["timestamp","ask_amount","ask_price","bid_price","bid_amount"]
[1767135023307,0.0113149,88379.0,88375.0,0.01132]
[1767135024583,0.01131503,88378.0,88375.0,0.01132]
[1767135025167,0.0565758,88377.0,88375.0,0.01132]
[1767135025668,0.05657687,88376.0,88374.0,0.0001486]
[1767135025893,0.05957365,88377.0,88374.0,0.0001486]
[1767135030188,0.01131516,88377.0,88374.0,0.0001486]
[1767135031692,0.06789152,88377.0,88374.0,0.0001486]
[1767135031906,0.06789152,88377.0,88366.0,0.0001486]
[1767135031907,0.01131541,88375.0,88366.0,0.0114686]
[1767135032344,0.01131567,88373.0,88366.0,0.01152497]
[1767135032622,0.01131541,88375.0,88366.0,0.01152497]
[1767135032828,0.01131528,88376.0,88366.0,0.01152497]
[1767135033283,0.01131541,88375.0,88366.0,0.01152497]
[1767135033605,0.01131516,88377.0,88366.0,0.01152497]
[1767135033832,0.06789172,88376.0,88366.0,0.01152497]
[1767135034549,0.01131541,88375.0,88366.0,0.01152497]
[1767135034704,0.01131554,88374.0,88366.0,0.01152497]
[1767135035124,0.01131541,88375.0,88366.0,0.01152497]
[1767135035532,0.01131528,88376.0,88366.0,0.01152497]
[1767135036386,0.01131541,88375.0,88366.0,0.01152497]
[1767135036573,0.01131554,88374.0,88366.0,0.01152497]
[1767135036931,0.01131541,88375.0,88366.0,0.01152497]
[1767135037528,0.01131528,88376.0,88366.0,0.01152497]
[1767135039240,0.01131541,88375.0,88366.0,0.01152497]
[1767135039492,0.01131528,88376.0,88366.0,0.01152497]
[1767135039674,0.06789156,88377.0,88366.0,0.01152497]
[1767135039847,0.01131541,88375.0,88366.0,0.01152497]
[1767135040288,0.01131528,88376.0,88366.0,0.01152497]
[1767135041557,0.01131554,88374.0,88366.0,0.01152497]
[1767135042555,0.01131541,88375.0,88366.0,0.01152497]
[1767135043817,0.01131554,88374.0,88366.0,0.01152497]
[1767135045165,0.01131554,88374.0,88366.0,0.00020497]
[1767135045367,0.01131567,88373.0,88366.0,0.01156497]
[1767135045567,0.01131541,88375.0,88366.0,0.01156497]
[1767135045839,0.01131554,88374.0,88366.0,0.01156497]
[1767135046242,0.01131541,88375.0,88366.0,0.01156497]
[1767135046588,0.01131554,88374.0,88366.0,0.01156497]
[1767135047398,0.01131567,88373.0,88366.0,0.01156497]
[1767135047753,0.01131554,88374.0,88366.0,0.01156497]
[1767135048940,0.06789282,88375.0,88366.0,0.01156497]
[1767135049311,0.01131554,88374.0,88366.0,0.01156497]
[1767135049512,0.01131567,88373.0,88366.0,0.01156497]
[1767135049694,0.01131554,88374.0,88366.0,0.01156497]
[1767135050322,0.06789282,88375.0,88366.0,0.01156497]
[1767135050719,0.01131554,88374.0,88366.0,0.01156497]
[1767135050919,0.06789282,88375.0,88366.0,0.01156497]
[1767135053620,0.05657836,88373.0,88366.0,0.01156497]
[1767135053794,0.01131592,88371.0,88366.0,0.01156497]
[1767135053980,0.01131567,88373.0,88366.0,0.01156497]
[1767135054903,0.0113158,88372.0,88366.0,0.01156497]
[1767135055819,0.01131567,88373.0,88366.0,0.01156497]
[1767135056666,0.01131541,88375.0,88366.0,0.01156497]
[1767135057104,0.01131554,88374.0,88366.0,0.01156497]
[1767135057623,0.01131567,88373.0,88366.0,0.01156497]
[1767135058171,0.01131541,88375.0,88366.0,0.01156497]
[1767135058863,0.01131554,88374.0,88366.0,0.01156497]
[1767135060410,0.01131541,88375.0,88366.0,0.00020497]
[1767135060411,0.01131605,88370.0,88366.0,0.00020497]
[1767135060754,0.01131592,88371.0,88366.0,0.00020497]
[1767135061586,0.0113158,88372.0,88366.0,0.00020497]
[1767135061784,0.01131567,88373.0,88366.0,0.00020497]
[1767135062215,0.14723592,88371.0,88366.0,0.00020497]
[1767135062428,0.13592,88371.0,88366.0,0.00020497]
[1767135062729,0.0113158,88372.0,88366.0,0.00020497]
[1767135063073,0.14723592,88371.0,88366.0,0.00020497]
[1767135063279,0.0113158,88372.0,88366.0,0.00020497]
[1767135063881,0.01131605,88370.0,88366.0,0.00020497]
[1767135064078,0.01131592,88371.0,88366.0,0.00020497]
[1767135064488,0.0113158,88372.0,88366.0,0.00020497]
[1767135065761,0.01131592,88371.0,88366.0,0.00020497]
[1767135066588,0.06789556,88371.0,88366.0,0.00020497]
[1767135066734,0.01131605,88370.0,88366.0,0.00020497]
[1767135069167,0.01131618,88369.0,88366.0,0.00020497]
[1767135069368,0.01131605,88370.0,88366.0,0.00020497]
[1767135071091,0.01131592,88371.0,88366.0,0.00020497]
[1767135071283,0.01131605,88370.0,88366.0,0.00020497]
[1767135071463,0.01131618,88369.0,88366.0,0.00020497]
[1767135071695,0.01131605,88370.0,88366.0,0.00020497]
[1767135071876,0.01131618,88369.0,88366.0,0.00020497]
[1767135072073,0.01131605,88370.0,88366.0,0.00020497]
[1767135074838,0.01131618,88369.0,88366.0,0.00020497]
[1767135076629,0.01131618,88369.0,88366.0,4.97e-06]
[1767135076827,0.01131618,88369.0,88358.0,0.00915697]
[1767135076990,0.01131631,88368.0,88358.0,0.00915697]
[1767135078259,0.01131618,88369.0,88358.0,0.00915697]
[1767135078664,0.0678959,88371.0,88358.0,0.00915697]
[1767135078868,0.0678959,88371.0,88359.0,0.14353]
[1767135079218,0.01131605,88370.0,88359.0,0.14353]
[1767135079427,0.01131592,88371.0,88359.0,0.14353]
[1767135082593,0.45026919,88370.0,88359.0,0.14353]
[1767135083393,0.01131592,88371.0,88359.0,0.14353]
[1767135083557,0.45026919,88370.0,88359.0,0.14353]
[1767135084892,0.46158524,88370.0,88359.0,0.14353]
[1767135085413,0.45026919,88370.0,88359.0,0.14353]
[1767135085828,0.46158524,88370.0,88359.0,0.14353]
[1767135087770,0.46158524,88370.0,88359.0,0.15489]
[1767135087771,0.06789949,88366.0,88359.0,0.15489]
[1767135087971,0.01131682,88364.0,88359.0,0.15489]
[1767135088195,0.01131695,88363.0,88359.0,0.15489]
[1767135088413,0.01131682,88364.0,88359.0,0.15489]
[1767135088625,0.01131695,88363.0,88359.0,0.15489]
[1767135088778,0.01131682,88364.0,88359.0,0.15489]
[1767135089204,0.01131669,88365.0,88359.0,0.15489]
[1767135089422,0.01131682,88364.0,88359.0,0.15489]
[1767135093546,0.01131669,88365.0,88359.0,0.15489]
[1767135094498,0.06789949,88366.0,88359.0,0.15489]
[1767135096354,0.01131644,88367.0,88366.0,0.000549]
[1767135097057,0.01131656,88366.0,88359.0,0.15489]
[1767135100575,0.01131644,88367.0,88359.0,0.15489]
[1767135104194,0.01131656,88366.0,88359.0,0.15483331]
[1767135104512,0.01131644,88367.0,88359.0,0.15483331]
[1767135105220,0.01131656,88366.0,88359.0,0.15483331]
[1767135105380,0.01131644,88367.0,88359.0,0.15483331]
[1767135111154,0.01131631,88368.0,88359.0,0.15483331]
[1767135111944,0.01131644,88367.0,88359.0,0.01136]
[1767135114368,0.01131631,88368.0,88359.0,0.01136]
[1767135114652,0.01131644,88367.0,88359.0,0.01136]
[1767135115573,0.01131631,88368.0,88359.0,0.01136]
[1767135116610,0.01131644,88367.0,88359.0,0.01136]
[1767135116906,0.01131656,88366.0,88359.0,0.01136]
[1767135117084,0.01131644,88367.0,88359.0,0.01136]
[1767135118827,0.01131656,88366.0,88359.0,0.01136]
[1767135119034,0.01131644,88367.0,88359.0,0.01136]
[1767135119233,0.01131656,88366.0,88359.0,0.01136]
[1767135119431,0.01131644,88367.0,88359.0,0.01136]
[1767135120232,0.01131631,88368.0,88359.0,0.01136]
[1767135120819,0.01131644,88367.0,88359.0,0.01136]
[1767135121877,0.01131631,88368.0,88359.0,0.01136]
[1767135122062,0.01131644,88367.0,88359.0,0.01136]
[1767135123648,0.01131631,88368.0,88359.0,0.01136]
[1767135126038,0.01131644,88367.0,88359.0,0.01136]
[1767135126665,0.01131631,88368.0,88359.0,0.01136]
[1767135127222,0.06789757,88369.0,88359.0,0.01136]
[1767135127223,0.01131618,88369.0,88359.0,0.01136]
[1767135127659,0.01131631,88368.0,88359.0,0.01136]
[1767135128283,0.01131618,88369.0,88359.0,0.01136]
[1767135131622,0.45026919,88370.0,88359.0,0.01136]
[1767135138821,0.01131567,88373.0,88359.0,0.01136]
[1767135139003,0.01131567,88373.0,88359.0,0.16089]
[1767135140250,0.06789359,88374.0,88359.0,0.16089]
[1767135140617,0.01131567,88373.0,88359.0,0.16089]
[1767135142144,0.45026919,88370.0,88359.0,0.16089]
[1767135142724,0.01131567,88373.0,88359.0,0.16089]
[1767135144645,0.0113158,88372.0,88359.0,0.16089]
[1767135147733,0.01131567,88373.0,88359.0,0.16089]
[1767135147936,0.06803157,88388.0,88374.0,0.14953]
[1767135148163,0.06803157,88388.0,88370.0,0.0565798]
[1767135148164,0.0002553,88388.0,88376.0,0.14953]
[1767135148480,0.0002553,88388.0,88376.0,0.14948709]
[1767135154336,0.0002553,88388.0,88376.0,0.16080237]
[1767135154738,0.0002553,88388.0,88376.0,0.14948709]
[1767135155101,0.0002553,88388.0,88376.0,0.16080237]
[1767135155497,0.0002553,88388.0,88376.0,0.14948709]
[1767135156034,0.0002553,88388.0,88376.0,0.16080237]
[1767135156958,3e-07,88388.0,88378.0,0.14953]
[1767135157748,3e-07,88388.0,88382.0,0.01131452]
[1767135157986,3e-07,88388.0,88384.0,0.14953]
[1767135158762,3e-07,88388.0,88383.0,0.02263439]
[1767135158763,3e-07,88388.0,88386.0,0.14953]
[1767135161668,0.06787065,88404.0,88389.0,0.14953]
[1767135161869,0.00021298,88397.0,88391.0,0.14953]
[1767135163298,9.8e-07,88397.0,88391.0,0.14953]
[1767135166068,9.8e-07,88397.0,88394.0,0.01131298]
[1767135166271,9.8e-07,88397.0,88395.0,0.14953]
[1767135166554,9.8e-07,88397.0,88394.0,0.06787744]
[1767135166752,9.8e-07,88397.0,88395.0,0.14087]
[1767135167299,0.0001486,88406.0,88397.0,0.14087]
[1767135167504,0.0001486,88406.0,88399.0,0.14087]
[1767135178182,0.0001486,88406.0,88399.0,0.14082782]
[1767135178816,0.0001486,88406.0,88399.0,0.14078566]
[1767135179290,6.66e-05,88406.0,88399.0,0.14078566]
[1767135186743,6.66e-05,88406.0,88399.0,0.14074348]
[1767135187974,6.66e-05,88406.0,88399.0,0.14070132]
[1767135191891,6.66e-05,88406.0,88398.0,0.01132]
[1767135192094,0.0001486,88415.0,88401.0,0.13864]
[1767135192294,0.01145889,88415.0,88401.0,0.13864]
[1767135192492,0.0001486,88415.0,88401.0,0.13864]
[1767135192734,0.0001486,88415.0,88401.0,0.14995208]
[1767135193083,0.0001486,88415.0,88402.0,0.13864]
[1767135194268,0.01145889,88415.0,88402.0,0.13864]
[1767135195030,0.0001486,88415.0,88402.0,0.13864]
[1767135196237,0.01145889,88415.0,88402.0,0.13864]
[1767135196923,0.0001486,88415.0,88402.0,0.13864]
[1767135197331,0.01145889,88415.0,88402.0,0.13864]
[1767135199704,0.0001486,88415.0,88402.0,0.13864]
[1767135200148,0.01145889,88415.0,88402.0,0.13864]
[1767135200425,0.0001486,88415.0,88402.0,0.13864]
[1767135201366,0.01145889,88415.0,88402.0,0.13864]
[1767135201833,0.0001486,88415.0,88402.0,0.13864]
[1767135206848,0.0001486,88415.0,88403.0,0.01131183]
[1767135208000,0.0001486,88415.0,88404.0,0.0113117]
[1767135208200,0.0001486,88415.0,88405.0,0.01132]
[1767135211241,0.01145889,88415.0,88405.0,0.01132]
[1767135211599,0.0001486,88415.0,88405.0,0.01132]
[1767135216500,0.15707042,88414.0,88406.0,0.01132]
[1767135216698,0.14576,88414.0,88407.0,0.01132]
[1767135216850,0.14576,88414.0,88407.0,0.010771]
[1767135222029,0.14576,88414.0,88408.0,0.01132]
[1767135222613,0.14576,88414.0,88409.0,0.01132]
[1767135231125,0.0001486,88415.0,88409.0,0.01132]
[1767135232911,0.0001486,88415.0,88410.0,0.01132]
[1767135233311,0.0001486,88415.0,88411.0,0.01132]
[1767135234443,0.0001486,88415.0,88401.0,0.01131208]
[1767135234664,0.0001486,88415.0,88402.0,0.01132]
[1767135235743,0.0001486,88415.0,88402.0,0.02263196]
[1767135236275,0.0001486,88415.0,88403.0,0.14001]
[1767135236514,0.0001486,88415.0,88403.0,0.15133]
[1767135236681,0.0001486,88415.0,88403.0,0.16264183]
[1767135237025,0.0001486,88415.0,88403.0,0.15133]
[1767135237228,0.0001486,88415.0,88403.0,0.14001]
[1767135237431,0.0001486,88415.0,88404.0,0.01132]
[1767135238552,6e-07,88415.0,88406.0,0.14001]
[1767135239953,6e-07,88415.0,88407.0,0.01132]
[1767135255595,6e-07,88415.0,88410.0,0.1389]
[1767135255983,6e-07,88415.0,88410.0,0.15021093]
[1767135256183,6e-07,88415.0,88411.0,0.0113108]
[1767135256392,0.06825005,88431.0,88412.0,0.15567068]
[1767135256598,0.0113085,88429.0,88415.0,0.14436]
[1767135256794,0.0113085,88429.0,88419.0,0.59409111]
[1767135256969,0.0113085,88429.0,88419.0,0.14436]
[1767135257397,0.01130837,88430.0,88419.0,0.14436]
[1767135257734,0.0113085,88429.0,88419.0,0.14436]
[1767135258940,0.0113085,88429.0,88419.0,0.59409111]
[1767135259137,0.0113085,88429.0,88419.0,0.14436]
[1767135259361,0.0113085,88429.0,88419.0,0.59409111]
[1767135259924,0.01051793,88431.0,88419.0,0.59409111]
[1767135260243,0.01130837,88430.0,88419.0,0.59409111]
[1767135263700,0.01051793,88431.0,88419.0,0.59409111]
[1767135264820,0.000148,88419.0,88416.0,0.01132]
[1767135265244,0.14737863,88428.0,88416.0,0.01132]
[1767135266693,0.13607,88428.0,88416.0,0.01132]
[1767135267797,0.01130863,88428.0,88416.0,0.01132]
[1767135267997,0.0113085,88429.0,88416.0,0.01132]
[1767135270759,0.01130837,88430.0,88416.0,0.01132]
[1767135273245,0.0113085,88429.0,88416.0,0.01132]
[1767135273596,0.01130837,88430.0,88416.0,0.01132]
[1767135273735,0.0113085,88429.0,88416.0,0.01132]
[1767135274645,0.01130837,88430.0,88416.0,0.01132]
[1767135276686,0.0113085,88429.0,88416.0,0.01132]
[1767135278509,0.01130863,88428.0,88416.0,0.01132]
[1767135282492,0.01130837,88430.0,88416.0,0.01132]
[1767135283044,0.06820562,88431.0,88416.0,0.01132]
[1767135283210,0.01130837,88430.0,88416.0,0.15568]
[1767135284243,0.01130837,88430.0,88416.0,0.15373292]
[1767135284611,0.0113085,88429.0,88416.0,0.15373292]
[1767135284809,0.01130837,88430.0,88416.0,0.15373292]
[1767135287871,0.06820562,88431.0,88416.0,0.15373292]
[1767135288270,0.01130837,88430.0,88416.0,0.15373292]
[1767135288478,0.06820562,88431.0,88416.0,0.15373292]
[1767135288704,0.01130837,88430.0,88416.0,0.15373292]
[1767135290431,0.01130863,88428.0,88416.0,0.15373292]
[1767135290796,0.0113085,88429.0,88416.0,0.15373292]
[1767135291795,0.01130863,88428.0,88416.0,0.15373292]
[1767135292192,0.0113085,88429.0,88416.0,0.15373292]
[1767135292478,0.01130863,88428.0,88416.0,0.15373292]
[1767135292640,0.0113085,88429.0,88416.0,0.15373292]
[1767135293451,0.01130863,88428.0,88416.0,0.15373292]
[1767135293840,0.0113085,88429.0,88416.0,0.15373292]
[1767135294041,0.01130863,88428.0,88416.0,0.15373292]
[1767135295745,0.0113085,88429.0,88416.0,0.15373292]
[1767135298787,0.15229837,88430.0,88416.0,0.15373292]
[1767135299441,0.0113085,88429.0,88416.0,0.15373292]
[1767135301643,0.01130863,88428.0,88416.0,0.15373292]
[1767135303288,0.0113085,88429.0,88416.0,0.15373292]
[1767135306629,0.01130863,88428.0,88416.0,0.15373292]
[1767135307259,0.0113085,88429.0,88416.0,0.00937292]
[1767135307464,0.0113085,88429.0,88417.0,0.14201]
[1767135307710,0.0113085,88429.0,88418.0,0.01132]
[1767135307912,0.01166393,88431.0,88418.0,0.01132]
[1767135309787,0.01130837,88430.0,88418.0,0.01132]
[1767135310820,0.14848393,88431.0,88418.0,0.01132]
[1767135314260,0.01130837,88430.0,88418.0,0.01132]
[1767135315007,0.01166393,88431.0,88418.0,0.01132]
[1767135315209,0.01166393,88431.0,88418.0,0.15333]
[1767135317058,0.00035568,88431.0,88418.0,0.15333]
[1767135319220,0.01166393,88431.0,88418.0,0.15333]
[1767135321579,0.00035568,88431.0,88418.0,0.15333]
[1767135324680,0.01166393,88431.0,88418.0,0.15333]
[1767135325020,0.00035568,88431.0,88418.0,0.15333]
[1767135325192,0.01166393,88431.0,88418.0,0.15333]
[1767135325557,0.00035568,88431.0,88418.0,0.15333]
[1767135327406,0.01130837,88430.0,88418.0,0.01132]
[1767135327724,0.14562,88430.0,88418.0,0.01132]
[1767135329739,0.14562,88430.0,88418.0,0.01087082]
[1767135331387,0.01166393,88431.0,88418.0,0.01087082]
[1767135331546,0.00035568,88431.0,88418.0,0.01087082]
[1767135331729,0.01166393,88431.0,88418.0,0.01087082]
[1767135331925,0.00035568,88431.0,88419.0,0.14602]
[1767135332721,0.00035568,88431.0,88418.0,0.01087082]
[1767135333550,0.14597568,88431.0,88418.0,0.01087082]
[1767135336251,0.15728393,88431.0,88418.0,0.01087082]
[1767135336447,0.14597568,88431.0,88418.0,0.01087082]
[1767135337622,0.15728393,88431.0,88418.0,0.01087082]
[1767135337861,0.00035568,88431.0,88418.0,0.15689082]
[1767135338916,0.01166393,88431.0,88418.0,0.15689082]
[1767135339685,0.06820526,88431.0,88418.0,0.15689082]
[1767135339833,0.01130837,88430.0,88418.0,0.15689082]
[1767135340032,0.06820526,88431.0,88418.0,0.15689082]
[1767135340251,0.01166393,88431.0,88418.0,0.15689082]
[1767135341366,0.01130837,88430.0,88418.0,0.15689082]
[1767135345198,0.01166393,88431.0,88418.0,0.15689082]
[1767135347507,0.01130837,88430.0,88418.0,0.15689082]
[1767135347702,0.00035568,88431.0,88418.0,0.15689082]
[1767135353418,0.00035568,88431.0,88401.0,0.0001486]
[1767135353419,0.01130991,88418.0,88401.0,0.0001486]
[1767135353531,0.01130991,88418.0,88406.0,0.01132]
[1767135353532,0.01131029,88415.0,88406.0,0.01132]
[1767135353737,0.01131093,88410.0,88407.0,0.01132]
[1767135353974,0.0113108,88411.0,88407.0,0.01132]
[1767135354149,0.01074379,88411.0,88407.0,0.01132]
[1767135354348,0.01131068,88412.0,88407.0,0.01132]
[1767135354590,0.06786352,88413.0,88407.0,0.01132]
[1767135354752,0.01131055,88413.0,88407.0,0.01132]
[1767135354954,0.01131042,88414.0,88407.0,0.01132]
[1767135355358,0.01131055,88413.0,88407.0,0.01132]
[1767135355565,0.01131068,88412.0,88407.0,0.01132]
[1767135356365,0.01131055,88413.0,88407.0,0.01132]
[1767135357500,0.01131068,88412.0,88407.0,0.01132]
[1767135358080,0.01131055,88413.0,88407.0,0.01132]
[1767135360183,0.01131042,88414.0,88407.0,0.01132]
[1767135361808,0.01131055,88413.0,88407.0,0.01132]
[1767135370581,0.01131042,88414.0,88407.0,0.01132]
[1767135372907,0.01131004,88417.0,88414.0,0.000401]
[1767135373113,0.0678608,88417.0,88414.0,0.000401]
[1767135373311,0.102171,88431.0,88418.0,0.1445]
[1767135373516,0.01130863,88428.0,88421.0,0.1445]
[1767135373741,0.01130876,88427.0,88422.0,0.01132]
[1767135373939,0.01166393,88431.0,88422.0,0.01132]
[1767135373940,0.01166393,88431.0,88423.0,0.1445]
[1767135374141,0.01130837,88430.0,88423.0,0.1445]
[1767135374359,0.01166393,88431.0,88423.0,0.1445]
[1767135376161,0.00035568,88431.0,88423.0,0.1445]
[1767135376845,0.01166393,88431.0,88423.0,0.1445]
[1767135377052,0.00035568,88431.0,88423.0,0.1445]
[1767135380816,0.01166393,88431.0,88423.0,0.1445]
[1767135381025,0.00035568,88431.0,88423.0,0.1445]
[1767135381674,0.01166393,88431.0,88423.0,0.1445]
[1767135383262,0.00035568,88431.0,88423.0,0.1445]
[1767135384147,0.0678462,88436.0,88422.0,0.01132]
[1767135384148,0.22612199,88448.0,88432.0,0.14521]
[1767135384349,0.22612199,88448.0,88433.0,0.01132]
[1767135384600,0.01130748,88437.0,88434.0,0.14521]
[1767135384779,0.01130735,88438.0,88434.0,0.14521]
[1767135385099,0.0113071,88440.0,88434.0,0.14521]
[1767135385264,0.01130684,88442.0,88434.0,0.14521]
[1767135385442,0.01130697,88441.0,88434.0,0.14521]
[1767135385680,0.01130684,88442.0,88434.0,0.14521]
[1767135386802,0.01130671,88443.0,88434.0,0.14521]
[1767135387697,0.01130684,88442.0,88434.0,0.14521]
[1767135387912,0.01130671,88443.0,88434.0,0.14521]
[1767135388946,0.01130658,88444.0,88434.0,0.14521]
[1767135389814,0.01130671,88443.0,88434.0,0.14521]
[1767135390336,0.01130684,88442.0,88434.0,0.14521]
[1767135390963,0.01130697,88441.0,88434.0,0.14521]
[1767135391187,0.01130684,88442.0,88434.0,0.14521]
[1767135392598,0.01130697,88441.0,88434.0,0.14521]
[1767135392763,0.06784112,88442.0,88434.0,0.14521]
[1767135392764,0.01130684,88442.0,88434.0,0.14521]
[1767135393366,0.01130658,88444.0,88434.0,0.14521]
[1767135393997,0.01130671,88443.0,88434.0,0.14521]
[1767135394197,0.01130646,88445.0,88434.0,0.14521]
[1767135394768,0.01130658,88444.0,88434.0,0.14521]
[1767135394968,0.01130671,88443.0,88434.0,0.14521]
[1767135396199,0.01130684,88442.0,88434.0,0.14521]
[1767135396981,0.01130684,88442.0,88433.0,0.01132]
[1767135402871,0.01130671,88443.0,88433.0,0.01132]
[1767135403620,0.01130684,88442.0,88433.0,0.01132]
[1767135404033,0.01130671,88443.0,88433.0,0.01132]
[1767135404740,0.06783989,88444.0,88433.0,0.01132]
[1767135404741,0.01130658,88444.0,88433.0,0.01132]
[1767135405823,0.01130646,88445.0,88433.0,0.01132]
[1767135406539,0.01130658,88444.0,88433.0,0.01132]
[1767135406744,0.01130646,88445.0,88433.0,0.01132]
[1767135407538,0.01130658,88444.0,88433.0,0.01132]
[1767135407744,0.01130671,88443.0,88433.0,0.01132]
[1767135408971,0.01130658,88444.0,88433.0,0.01132]
[1767135409508,0.01130671,88443.0,88433.0,0.01132]
[1767135409874,0.01130658,88444.0,88433.0,0.01132]
[1767135410253,0.01130633,88446.0,88433.0,0.01132]
[1767135410458,0.01130646,88445.0,88433.0,0.01132]
[1767135410659,0.01130633,88446.0,88433.0,0.01132]
[1767135410858,0.01130646,88445.0,88433.0,0.01132]
[1767135412604,0.01130633,88446.0,88433.0,0.01132]
[1767135413338,0.01130658,88444.0,88433.0,0.01132]
[1767135417856,0.01130671,88443.0,88433.0,0.01132]
[1767135420764,0.01130684,88442.0,88433.0,0.01132]
[1767135421373,0.06784063,88443.0,88433.0,0.01132]
[1767135421538,0.01130658,88444.0,88433.0,0.01132]
[1767135422038,0.01130671,88443.0,88433.0,0.01132]
[1767135422457,0.01130684,88442.0,88433.0,0.01132]
[1767135422974,0.01130697,88441.0,88433.0,0.01132]
[1767135423140,0.01130684,88442.0,88433.0,0.01132]
[1767135424480,0.01130697,88441.0,88433.0,0.01132]
[1767135424848,0.01130671,88443.0,88433.0,0.01132]
[1767135425056,0.01126451,88443.0,88433.0,0.01132]
[1767135425258,0.01130684,88442.0,88433.0,0.01132]
[1767135425464,0.01130671,88443.0,88433.0,0.01132]
[1767135426902,0.14676658,88444.0,88433.0,0.01132]
[1767135427875,0.01130697,88441.0,88433.0,0.01132]
[1767135428068,0.01130684,88442.0,88433.0,0.01132]
[1767135428873,0.01130646,88445.0,88433.0,0.01132]
[1767135429098,0.05653121,88447.0,88433.0,0.01132]
[1767135429099,0.01130633,88446.0,88433.0,0.14932]
[1767135429313,0.01130607,88448.0,88433.0,0.14932]
[1767135429892,0.01130633,88446.0,88433.0,0.14932]
[1767135430482,0.01130646,88445.0,88433.0,0.14932]
[1767135431068,0.01130633,88446.0,88433.0,0.14932]
[1767135431606,0.0113062,88447.0,88433.0,0.14932]
[1767135431821,0.01130633,88446.0,88433.0,0.14932]
[1767135432018,0.0113062,88447.0,88433.0,0.14932]
[1767135432696,0.01130633,88446.0,88433.0,0.14932]
[1767135432882,0.01130646,88445.0,88433.0,0.14932]
[1767135433398,0.01130658,88444.0,88433.0,0.14932]
[1767135433982,0.01130671,88443.0,88433.0,0.14932]
[1767135434839,0.01130658,88444.0,88433.0,0.14932]
[1767135436708,0.01130671,88443.0,88433.0,0.14932]
[1767135437038,0.01130658,88444.0,88433.0,0.14932]
[1767135437192,0.01130607,88448.0,88433.0,0.14932]
[1767135438598,0.01130633,88446.0,88433.0,0.14932]
[1767135439818,0.0113062,88447.0,88433.0,0.14932]
[1767135440430,0.01130646,88445.0,88433.0,0.14932]
[1767135440643,0.01130633,88446.0,88433.0,0.14932]
[1767135441377,0.0113062,88447.0,88433.0,0.14932]
[1767135441815,0.01130607,88448.0,88433.0,0.14932]
[1767135442422,0.01130607,88448.0,88433.0,0.16062799]
[1767135443115,0.0113062,88447.0,88433.0,0.14932]
[1767135443322,0.01130607,88448.0,88433.0,0.14932]
[1767135443572,0.01130607,88448.0,88433.0,0.16062799]
[1767135443951,0.01130607,88448.0,88433.0,0.14932]
[1767135445239,0.0113062,88447.0,88433.0,0.14932]
[1767135446964,0.15215607,88448.0,88433.0,0.14932]
[1767135447348,0.0113062,88447.0,88433.0,0.14932]
[1767135447549,0.15215607,88448.0,88433.0,0.14932]
[1767135447913,0.0113062,88447.0,88433.0,0.14932]
[1767135449252,0.15215607,88448.0,88433.0,0.14932]
[1767135450052,0.0113062,88447.0,88433.0,0.14932]
[1767135451323,0.15215607,88448.0,88433.0,0.14932]
[1767135451728,0.01130633,88446.0,88433.0,0.14932]
[1767135451873,0.0113062,88447.0,88433.0,0.14932]
[1767135452889,0.01130633,88446.0,88433.0,0.14932]
[1767135453291,0.1521562,88447.0,88433.0,0.14932]
[1767135458451,0.14085,88448.0,88433.0,0.16062799]
[1767135458666,0.14085,88448.0,88434.0,0.01130786]
[1767135458837,0.14085,88448.0,88435.0,0.01130774]
[1767135459037,0.14085,88448.0,88434.0,0.01130786]
[1767135460663,0.14085,88448.0,88435.0,0.01130774]
[1767135461174,0.14085,88448.0,88434.0,0.01130786]
[1767135461553,0.14085,88448.0,88435.0,0.01130774]
[1767135462001,0.14085,88448.0,88434.0,0.01130786]
[1767135464969,0.14085,88448.0,88435.0,0.01130774]
[1767135465167,0.14085,88448.0,88433.0,0.02262799]
[1767135465370,0.14085,88448.0,88434.0,0.01130786]
[1767135466351,0.14085,88448.0,88435.0,0.01130774]
[1767135468543,0.14085,88448.0,88434.0,0.01130786]
[1767135468744,0.14085,88448.0,88435.0,0.01130774]
[1767135469545,0.14085,88448.0,88434.0,0.01130786]
[1767135469944,0.14085,88448.0,88435.0,0.01130774]
[1767135470951,0.14085,88448.0,88434.0,0.01130786]
[1767135472528,0.14085,88448.0,88435.0,0.01130774]
[1767135472671,0.15215607,88448.0,88433.0,0.01132]
[1767135472867,0.14085,88448.0,88433.0,0.02262799]
[1767135473950,0.13975,88447.0,88433.0,0.01132]
[1767135474499,0.13975,88447.0,88433.0,0.02262799]
[1767135474908,0.13975,88447.0,88433.0,0.01132]
[1767135475219,0.13975,88447.0,88433.0,0.02262799]
[1767135475575,0.13975,88447.0,88434.0,0.01130786]
[1767135475725,0.13975,88447.0,88435.0,0.0678463]
[1767135475925,0.13975,88447.0,88436.0,0.01130761]
[1767135476135,0.13975,88447.0,88435.0,0.01130774]
[1767135476959,0.13975,88447.0,88436.0,0.01130761]
[1767135477160,0.13975,88447.0,88435.0,0.01130774]
[1767135477161,0.0001486,88450.0,88437.0,0.01130748]
[1767135477340,0.1398986,88450.0,88447.0,0.000356]
[1767135477533,0.15120442,88450.0,88446.0,0.01132]
[1767135477737,0.15120442,88450.0,88446.0,0.011127]
[1767135478323,0.1398986,88450.0,88446.0,0.011127]
[1767135479068,0.15120442,88450.0,88446.0,0.011127]
[1767135479273,0.13975,88449.0,88446.0,0.011127]
[1767135479683,0.0001486,88450.0,88446.0,0.011127]
[1767135480417,0.1491086,88450.0,88446.0,0.011127]
[1767135480566,0.16041442,88450.0,88446.0,0.011127]
[1767135481229,0.14896,88448.0,88446.0,0.011127]
[1767135481403,0.14896,88448.0,88429.0,0.05654237]
[1767135481404,0.14896,88426.0,88416.0,0.08108514]
[1767135481747,0.14896,88426.0,88407.0,0.1455]
[1767135481748,0.14896,88426.0,88405.0,0.00050997]
[1767135481749,0.01131119,88408.0,88405.0,0.00050997]
[1767135481906,0.14896,88403.0,88390.0,0.44940997]
[1767135482108,0.14896,88403.0,88388.0,0.04524]
[1767135482109,0.14896,88403.0,88385.0,0.03396375]
[1767135482110,0.16027234,88399.0,88385.0,0.03396375]
[1767135482281,0.16027234,88399.0,88383.0,0.0001486]
[1767135482282,0.14896,88398.0,88386.0,0.06105353]
[1767135483171,0.14896,88398.0,88386.0,0.05008921]
[1767135483413,0.14896,88398.0,88388.0,0.01131375]
[1767135483622,0.14896,88398.0,88386.0,0.10665867]
[1767135483623,0.14896,88399.0,88386.0,0.05008921]
[1767135483954,0.14896,88399.0,88389.0,0.01132]
[1767135486233,0.1490824,88404.0,88389.0,0.02263362]
[1767135486439,0.01131068,88412.0,88404.0,0.0004266]